bitfinex-derivatives/quotes_SOLF0:USTF0_20250818
["timestamp","ask_amount","ask_price","bid_price","bid_amount"]
[1755536532260,4.02381731,182.38,182.37,0.03958028]
[1755536534459,7.08381731,182.38,182.37,0.03958028]
[1755536534661,11.79282655,182.38,182.37,0.03958028]
[1755536540164,7.08381731,182.38,182.37,0.03958028]
[1755536540366,11.79586428,182.38,182.37,0.03958028]
[1755536541066,11.79561127,182.38,182.37,0.03958028]
[1755536543065,3.15,182.37,182.28,2.98]
[1755536543267,3.15,182.35,182.28,2.98]
[1755536543462,4.02381731,182.34,182.28,2.98]
[1755536543669,4.02381731,182.33,182.27,5.4831]
[1755536543971,140.42381731,182.32,182.27,2.98]
[1755536544268,136.4,182.32,182.3,2.98]
[1755536545465,136.4,182.32,182.31,2.98]
[1755536545770,140.4404732,182.32,182.31,2.98]
[1755536550967,140.4404732,182.32,182.28,8.4628]
[1755536551172,136.4,182.32,182.28,5.4828]
[1755536551471,136.4,182.32,182.3,2.98]
[1755536552073,7.18503711,182.31,182.28,2.98]
[1755536552273,136.4,182.32,182.29,2.98]
[1755536552573,4.03451507,182.31,182.29,2.98]
[1755536552763,139.55,182.32,182.29,2.98]
[1755536552969,4.03450937,182.31,182.29,2.98]
[1755536553165,139.55,182.32,182.29,2.98]
[1755536553371,4.03396233,182.31,182.29,2.98]
[1755536553572,139.55,182.32,182.29,2.98]
[1755536553762,4.03396233,182.31,182.29,2.98]
[1755536553967,139.55,182.32,182.29,2.98]
[1755536554275,4.03338028,182.31,182.29,2.98]
[1755536554468,139.55,182.32,182.29,2.98]
[1755536554668,4.03317026,182.31,182.29,2.98]
[1755536554867,139.55,182.32,182.29,2.98]
[1755536555068,4.03317026,182.31,182.29,2.98]
[1755536555270,139.55,182.32,182.29,2.98]
[1755536557972,3.15,182.31,182.26,125.20648287]
[1755536558173,3.15,182.3,182.27,2.98]
[1755536559080,139.55,182.32,182.29,2.98]
[1755536559274,3.15,182.31,182.26,122.22648287]
[1755536559473,136.4,182.32,182.25,2.98]
[1755536559674,3.15,182.29,182.25,2.98]
[1755536559870,139.49,182.28,182.24,2.98]
[1755536560277,3.15,182.27,182.24,2.98]
[1755536560474,3.15,182.27,182.21,6.85862379]
[1755536561581,3.15,182.32,182.22,2.98]
[1755536561775,145.06880976,182.31,182.22,2.98]
[1755536561978,7.17981242,182.3,182.24,12.34272379]
[1755536562279,3.15,182.28,182.25,2.98]
[1755536562884,136.34,182.31,182.24,9.36272379]
[1755536563082,4.04653217,182.3,182.26,2.98]
[1755536563277,7.19653217,182.29,182.26,2.98]
[1755536563474,3.15,182.29,182.26,2.98]
[1755536564185,136.34,182.31,182.25,2.98]
[1755536564381,3.15,182.33,182.29,2.98]
[1755536564678,4.04615817,182.32,182.31,8.4621]
[1755536565181,136.34,182.35,182.31,8.4621]
[1755536565383,0.04213617,182.33,182.31,2.98]
[1755536565581,0.04213617,182.33,182.3,3.87862379]
[1755536565783,0.04213617,182.33,182.3,6.85862379]
[1755536565977,0.04213617,182.33,182.3,9.36102379]
[1755536566182,0.04213617,182.33,182.32,2.98]
[1755536568987,0.04213617,182.33,182.32,8.4618]
[1755536569986,0.04213617,182.33,182.32,2.98]
[1755536570784,0.04213617,182.33,182.32,8.4618]
[1755536571681,0.04213617,182.33,182.31,5.482]
[1755536571885,3.19213617,182.33,182.31,3.87862379]
[1755536572084,3.15,182.33,182.29,2.98]
[1755536572285,3.15,182.33,182.29,8.4627]
[1755536572884,3.04,182.32,182.29,2.98]
[1755536573089,3.0756152,182.34,182.29,2.9695336]
[1755536573290,4.04898003,182.33,182.29,0.0395336]
[1755536573484,3.0756152,182.34,182.29,0.0395336]
[1755536573691,4.05023839,182.33,182.31,2.93]
[1755536573886,3.0756152,182.34,182.31,2.93]
[1755536574087,4.05063083,182.33,182.31,2.93]
[1755536574286,0.0356152,182.34,182.29,0.0395336]
[1755536574493,0.0356152,182.34,182.32,2.93]
[1755536574993,0.0356152,182.34,182.3,5.4822]
[1755536575188,0.0356152,182.34,182.31,2.93]
[1755536576987,0.0356152,182.34,182.31,8.4121]
[1755536577283,0.0356152,182.34,182.31,2.93]
[1755536577484,0.0356152,182.34,182.32,2.93]
[1755536577689,0.0356152,182.34,182.31,3.87862379]
[1755536577988,3.04,182.4,182.36,2.93]
[1755536578188,374.49166786,182.42,182.29,0.0395336]
[1755536578189,4.05219631,182.39,182.35,2.93]
[1755536578391,4.05219631,182.38,182.36,2.93]
[1755536578592,371.48,182.42,182.36,8.4105]
[1755536578893,4.04625426,182.41,182.35,2.93]
[1755536579188,4.04625426,182.4,182.39,2.93]
[1755536580297,4.04625426,182.4,182.39,8.4097]
[1755536580596,136.22,182.44,182.38,0.03663632]
[1755536580898,4.04412996,182.43,182.41,2.93]
[1755536581094,4.04412996,182.42,182.41,2.93]
[1755536581290,4.04412996,182.42,182.41,8.4091]
[1755536581597,3.04,182.46,182.4,3.87862379]
[1755536581598,3.04,182.46,182.42,2.93]
[1755536581797,4.04020324,182.45,182.42,2.93]
[1755536581997,4.04020324,182.44,182.42,2.93]
[1755536582200,3.04,182.47,182.4,3.87862379]
[1755536582499,3.04,182.45,182.42,0.04032775]
[1755536582699,3.04,182.44,182.42,0.04032775]
[1755536583399,139.26,182.48,182.42,2.97032775]
[1755536583596,4.03431934,182.47,182.42,0.04032775]
[1755536583798,3.04,182.45,182.42,0.04032775]
[1755536584100,3.04,182.44,182.42,0.04032775]
[1755536584796,136.22,182.48,182.42,0.04032775]
[1755536584995,4.03198901,182.47,182.42,0.04032775]
[1755536585195,3.04,182.44,182.42,0.04032775]
[1755536585498,136.22,182.48,182.43,2.93]
[1755536585696,136.22,182.48,182.42,0.04032775]
[1755536585697,4.03008973,182.47,182.42,0.04032775]
[1755536585897,4.0297865,182.46,182.42,0.04032775]
[1755536586101,136.22,182.48,182.42,0.04032775]
[1755536586304,3.04,182.43,182.42,0.04032775]
[1755536586699,143.2274342,182.43,182.42,0.04032775]
[1755536586904,3.04,182.42,182.34,6.80862379]
[1755536587206,3.04,182.4,182.31,6.80862379]
[1755536587399,4.02669026,182.39,182.31,12.29052379]
[1755536587603,3.04,182.4,182.31,6.80862379]
[1755536587804,4.02668318,182.39,182.31,6.80862379]
[1755536588005,3.04,182.4,182.31,12.29062379]
[1755536588207,4.02305178,182.39,182.31,6.80862379]
[1755536588401,3.04,182.4,182.31,6.80862379]
[1755536588606,4.02389408,182.39,182.32,5.4818]
[1755536588808,3.04,182.4,182.32,5.4818]
[1755536589010,4.02303758,182.39,182.32,5.4818]
[1755536589209,3.04,182.4,182.32,5.4818]
[1755536589406,4.02221706,182.39,182.31,12.29062379]
[1755536589705,3.04,182.38,182.29,3.87862379]
[1755536590010,3.87862379,182.41,182.29,5.4827]
[1755536590011,3.04,182.36,182.29,5.4827]
[1755536590205,3.04,182.36,182.27,6.80862379]
[1755536590405,4.02263978,182.35,182.27,6.80862379]
[1755536590607,3.04,182.36,182.27,6.80862379]
[1755536590908,4.02287567,182.35,182.27,12.29172379]
[1755536591207,3.04,182.36,182.27,6.80862379]
[1755536591409,3.04,182.34,182.26,5.4834]
[1755536592607,0.03476106,182.32,182.26,5.4834]
[1755536593108,0.03476106,182.32,182.25,5.4838]
[1755536593407,3.07476106,182.32,182.24,6.80862379]
[1755536593809,3.07476106,182.32,182.27,2.93]
[1755536594208,3.04,182.31,182.27,2.93]
[1755536594414,3.04,182.31,182.27,8.4132]
[1755536594610,3.04,182.31,182.24,6.80862379]
[1755536595500,3.04,182.31,182.28,5.483]
[1755536596806,3.04,182.31,182.27,5.4833]
[1755536597006,3.04,182.31,182.27,8.4133]
[1755536597509,0.03476106,182.32,182.28,8.413]
[1755536598223,3.07476106,182.32,182.28,8.413]
[1755536599417,3.04,182.31,182.28,8.413]
[1755536599912,3.04,182.31,182.24,6.80862379]
[1755536600415,3.04,182.31,182.24,2.93]
[1755536601318,3.04,182.31,182.24,8.4141]
[1755536602726,3.04,182.31,182.24,2.93]
[1755536603810,50.0,182.3,182.24,8.414]
[1755536604810,50.0,182.3,182.24,6.80862379]
[1755536605116,0.03476106,182.32,182.25,2.93]
[1755536605918,0.03476106,182.32,182.28,5.4828]
[1755536606117,0.03476106,182.32,182.29,2.93]
[1755536607122,0.03476106,182.32,182.27,3.87862379]
[1755536607321,0.03476106,182.32,182.31,2.93]
[1755536607816,3.08,182.34,182.3,3.87862379]
[1755536608018,3.08,182.34,182.28,2.93]
[1755536609419,3.08,182.34,182.28,8.4129]
[1755536610423,3.08,182.34,182.3,2.93]
[1755536611223,136.14,182.35,182.3,2.93]
[1755536611423,136.14,182.35,182.31,2.93]
[1755536611623,3.08,182.34,182.31,2.93]
[1755536612224,3.08,182.34,182.28,5.4828]
[1755536612420,3.08,182.34,182.27,2.93]
[1755536612621,3.08,182.33,182.24,6.80862379]
[1755536612825,53.87862379,182.34,182.24,6.80862379]
[1755536612826,3.08,182.31,182.24,2.93]
[1755536614325,3.08,182.31,182.24,8.4141]
[1755536614626,3.08,182.31,182.24,2.93]
[1755536614821,50.0,182.32,182.26,5.4834]
[1755536615222,50.0,182.32,182.25,8.4137]
[1755536615622,0.03475383,182.3,182.25,2.93]
[1755536615819,0.03475383,182.3,182.26,8.4133]
[1755536616029,0.03475383,182.3,182.27,2.93]
[1755536616617,0.03475383,182.3,182.29,2.93]
[1755536617826,0.03475383,182.3,182.28,0.03572054]
[1755536618024,3.08,182.29,182.28,0.03572054]
[1755536618929,0.03475383,182.3,182.28,0.03572054]
[1755536619628,3.11475383,182.3,182.28,0.03572054]
[1755536620431,0.03475383,182.3,182.28,0.03572054]
[1755536623119,0.03475383,182.3,182.28,2.96572054]
[1755536623529,0.03475383,182.3,182.28,0.03572054]
[1755536623829,0.03475383,182.3,182.29,2.93]
[1755536624226,0.03475383,182.3,182.29,8.4127]
[1755536624822,139.16,182.37,182.32,5.4817]
[1755536625025,136.08,182.37,182.31,6.80862379]
[1755536626128,136.08,182.37,182.32,0.04017159]
[1755536626329,3.08,182.36,182.32,2.97017159]
[1755536626531,3.08,182.34,182.32,0.04017159]
[1755536626939,3.08,182.33,182.32,0.04017159]
[1755536627326,3.08,182.36,182.32,0.04017159]
[1755536627528,3.08,182.36,182.32,2.97017159]
[1755536627732,3.08,182.35,182.32,0.04017159]
[1755536628637,139.16,182.37,182.33,2.93]
[1755536628837,3.99517999,182.36,182.33,2.93]
[1755536629036,3.08,182.36,182.32,0.04017159]
[1755536629238,136.08,182.37,182.33,2.93]
[1755536629442,3.99802737,182.36,182.33,2.93]
[1755536629639,136.08,182.37,182.33,2.93]
[1755536629840,3.99802819,182.36,182.33,2.93]
[1755536630036,136.08,182.37,182.34,2.93]
[1755536630340,3.99818581,182.36,182.34,2.93]
[1755536630540,136.08,182.37,182.34,2.93]
[1755536631049,136.08,182.37,182.36,2.93]
[1755536631644,136.08,182.37,182.34,2.93]
[1755536632048,136.08,182.37,182.33,3.87862379]
[1755536632235,136.08,182.37,182.35,3.01]
[1755536632544,136.08,182.37,182.35,8.4909]
[1755536632735,136.08,182.37,182.35,3.01]
[1755536633144,136.08,182.37,182.34,5.4811]
[1755536633345,136.08,182.37,182.35,3.01]
[1755536633544,136.08,182.37,182.36,3.01]
[1755536634050,3.11,182.45,182.36,6.88862379]
[1755536634343,144.74377677,182.44,182.37,3.01]
[1755536634551,7.1128407,182.43,182.39,8.4897]
[1755536634844,3.11,182.43,182.39,8.52780053]
[1755536635044,136.02,182.44,182.4,8.4894]
[1755536635937,139.13,182.44,182.4,3.01]
[1755536636248,136.02,182.44,182.41,3.01]
[1755536636544,136.02,182.44,182.42,3.01]
[1755536636848,6.05166786,182.53,182.42,3.87862379]
[1755536637049,3.11,182.51,182.42,6.88862379]
[1755536637351,3.99953791,182.5,182.43,3.01]
[1755536637641,3.99953791,182.49,182.45,0.03568064]
[1755536637846,3.11,182.48,182.45,0.03568064]
[1755536638049,139.09,182.52,182.45,0.03568064]
[1755536638245,3.99084148,182.51,182.45,0.03568064]
[1755536638449,135.98,182.52,182.46,3.01]
[1755536639947,135.98,182.52,182.46,8.4875]
[1755536640152,135.98,182.52,182.46,3.01]
[1755536641350,135.98,182.52,182.46,8.4876]
[1755536641752,3.11,182.51,182.45,0.03568064]
[1755536645454,3.11,182.51,182.45,5.51358064]
[1755536645654,3.11,182.51,182.45,0.03568064]
[1755536647354,3.11,182.51,182.45,5.51358064]
[1755536647652,53.11,182.54,182.46,3.01]
[1755536647852,3.11,182.52,182.45,0.03568064]
[1755536648247,3.11,182.52,182.45,5.51338064]
[1755536650147,3.11,182.52,182.45,0.03568064]
[1755536651150,50.0,182.51,182.45,0.03568064]
[1755536651552,3.11,182.47,182.45,0.03568064]
[1755536654154,3.11,182.46,182.45,0.03568064]
[1755536658759,138.97,182.48,182.45,0.03568064]
[1755536658957,3.11,182.48,182.45,0.03568064]
[1755536659153,135.82,182.47,182.45,0.03568064]
[1755536659959,135.82,182.47,182.45,3.04568064]
[1755536660150,135.82,182.47,182.45,0.03568064]
[1755536660354,135.82,182.47,182.45,3.04568064]
[1755536660655,135.82,182.52,182.45,3.04568064]
[1755536661060,135.82,182.52,182.47,5.4772]
[1755536661264,3.11,182.51,182.47,8.4872]
[1755536661565,3.11,182.51,182.47,8.52735487]
[1755536661753,135.82,182.52,182.47,0.04015487]
[1755536661754,3.11,182.5,182.47,0.04015487]
[1755536662061,3.05,182.5,182.47,0.04015487]
[1755536662256,135.82,182.52,182.47,0.04015487]
[1755536662460,138.87,182.52,182.47,0.04015487]
[1755536662660,138.87,182.52,182.48,3.0]
[1755536663460,138.87,182.52,182.48,8.477]
[1755536664258,135.82,182.52,182.49,8.4767]
[1755536664563,135.82,182.52,182.5,3.0]
[1755536666358,135.82,182.52,182.48,5.477]
[1755536666657,3.05,182.5,182.47,0.04015487]
[1755536666862,3.05,182.51,182.47,3.04015487]
[1755536667066,3.05,182.5,182.47,3.04015487]
[1755536667563,135.82,182.52,182.47,8.51745487]
[1755536667767,3.9719805,182.51,182.47,8.51745487]
[1755536668068,135.82,182.52,182.47,8.51745487]
[1755536668358,7.02348156,182.51,182.47,3.04015487]
[1755536668562,3.05,182.51,182.47,3.04015487]
[1755536669159,135.82,182.52,182.48,3.0]
[1755536669360,3.9749802,182.51,182.5,3.0]
[1755536669660,135.82,182.52,182.48,8.477]
[1755536670165,138.87,182.52,182.48,8.477]
[1755536670555,135.82,182.52,182.48,5.477]
[1755536670865,135.82,182.52,182.49,3.0]
[1755536671260,138.87,182.52,182.49,3.0]
[1755536671462,135.82,182.52,182.47,5.51745487]
[1755536671762,3.97672482,182.51,182.47,8.51745487]
[1755536671959,3.05,182.5,182.47,0.04015487]
[1755536672362,3.05,182.5,182.47,3.04015487]
[1755536673063,135.82,182.52,182.47,0.04015487]
[1755536673257,8.64318735,182.51,182.47,0.04015487]
[1755536673567,3.05,182.49,182.47,0.04015487]
[1755536673767,3.05,182.52,182.48,3.0]
[1755536673956,144.40359114,182.51,182.48,3.0]
[1755536674162,3.98074369,182.5,182.48,3.0]
[1755536674467,3.98074369,182.49,182.47,0.04015487]
[1755536674665,135.76,182.51,182.47,0.04015487]
[1755536674862,3.9837941,182.5,182.47,3.04015487]
[1755536675063,3.9837941,182.49,182.47,3.04015487]
[1755536675261,138.81,182.51,182.47,3.04015487]
[1755536675467,3.98703292,182.5,182.48,3.0]
[1755536675667,3.98703292,182.49,182.48,3.0]
[1755536676167,3.98703292,182.49,182.48,8.4771]
[1755536676467,3.98703292,182.49,182.48,3.0]
[1755536677065,3.98703292,182.49,182.47,0.04015487]
[1755536677265,3.05,182.49,182.47,0.04015487]
[1755536677666,3.99142954,182.48,182.47,0.04015487]
[1755536677866,7.04142954,182.48,182.47,0.04015487]
[1755536679359,3.99142954,182.48,182.47,0.04015487]
[1755536679759,7.04142954,182.48,182.47,0.04015487]
[1755536680966,3.99142954,182.48,182.47,0.04015487]
[1755536681663,3.99142954,182.48,182.47,3.04015487]
[1755536682374,3.99142954,182.48,182.47,8.51755487]
[1755536682863,135.74,182.5,182.47,0.04015487]
[1755536683069,135.74,182.53,182.5,3.0]
[1755536683271,3.99774615,182.52,182.51,3.0]
[1755536683470,3.99774615,182.52,182.51,8.4762]
[1755536684365,3.99774615,182.52,182.49,3.0]
[1755536684563,135.74,182.53,182.49,3.0]
[1755536684770,3.99567202,182.52,182.49,3.0]
[1755536684965,135.74,182.53,182.49,8.4767]
[1755536685277,3.99566005,182.52,182.48,3.87862379]
[1755536685463,135.74,182.53,182.49,8.4765]
[1755536685666,3.99496784,182.52,182.49,8.4765]
[1755536685866,135.74,182.53,182.5,5.4762]
[1755536686072,3.99496784,182.52,182.49,3.0]
[1755536686265,135.74,182.53,182.49,3.0]
[1755536686569,135.74,182.53,182.51,3.0]
[1755536686779,135.74,182.53,182.52,3.0]
[1755536687075,3.99446436,182.53,182.52,8.4759]
[1755536687975,3.99446436,182.53,182.51,0.03547995]
[1755536688272,3.05,182.52,182.51,0.03547995]
[1755536688472,3.98966515,182.52,182.51,0.03547995]
[1755536689581,7.03966515,182.52,182.51,0.03547995]
[1755536689980,142.73966515,182.52,182.51,0.03547995]
[1755536696880,2.92,182.51,182.41,111.02428509]
[1755536697185,2.92,182.49,182.39,6.87862379]
[1755536697379,2.92,182.47,182.39,3.0]
[1755536697580,3.98885342,182.46,182.39,3.0]
[1755536697782,3.98885342,182.45,182.39,3.0]
[1755536697978,139.66885342,182.44,182.4,3.0]
[1755536698178,135.68,182.44,182.4,3.0]
[1755536698379,135.68,182.44,182.41,3.0]
[1755536699381,138.6,182.44,182.37,3.0]
[1755536699580,3.98371731,182.43,182.37,3.0]
[1755536699886,3.98431292,182.42,182.37,5.4801]
[1755536700086,138.6,182.44,182.38,3.0]
[1755536700284,2.92,182.42,182.38,3.0]
[1755536700488,2.92,182.41,182.35,3.0]
[1755536700681,3.98421923,182.4,182.31,6.87862379]
[1755536700982,142.58421923,182.39,182.33,5.4815]
[1755536701179,3.98421923,182.38,182.31,3.0]
[1755536701386,138.6,182.39,182.31,3.0]
[1755536701884,2.92,182.36,182.23,3.87862379]
[1755536702085,2.92,182.33,182.23,3.87862379]
[1755536702279,139.65422029,182.32,182.21,3.0]
[1755536702482,3.97422029,182.31,182.21,3.0]
[1755536702678,2.92,182.3,182.21,3.0]
[1755536703079,2.92,182.3,182.23,5.4844]
[1755536704385,2.92,182.3,182.22,5.4848]
[1755536704684,2.92,182.3,182.21,3.0]
[1755536706591,135.74,182.29,182.24,5.4842]
[1755536706785,2.92,182.28,182.21,3.0]
[1755536707195,2.92,182.28,182.23,5.4845]
[1755536707491,0.0347838,182.26,182.21,3.0]
[1755536707789,0.0347838,182.26,182.25,3.0]
[1755536711090,0.0347838,182.26,182.25,8.484]
[1755536712395,0.0347838,182.26,182.25,3.0]
[1755536712586,0.0347838,182.26,182.24,8.4842]
[1755536712785,0.0347838,182.26,182.25,3.0]
[1755536713187,0.0347838,182.26,182.25,8.484]
[1755536714398,0.0347838,182.26,182.23,3.0]
[1755536714799,2.9547838,182.26,182.21,6.87862379]
[1755536715003,2.9547838,182.26,182.22,3.0]
[1755536715987,0.0347838,182.26,182.21,3.87862379]
[1755536716187,0.0347838,182.26,182.23,3.0]
[1755536716598,0.0347838,182.26,182.21,3.87862379]
[1755536716599,2.9547838,182.26,182.22,3.0]
[1755536717101,2.92,182.24,182.21,3.87862379]
[1755536717488,135.7947838,182.26,182.21,3.87862379]
[1755536717693,138.7147838,182.26,182.22,3.0]
[1755536718398,2.92,182.25,182.22,3.0]
[1755536719497,2.92,182.25,182.21,3.87862379]
[1755536720092,2.92,182.24,182.21,3.87862379]
[1755536720291,2.92,182.24,182.21,6.87862379]
[1755536720898,2.92,182.24,182.21,12.36372379]
[1755536721099,138.7147838,182.26,182.22,3.0]
[1755536721397,2.92,182.25,182.22,3.0]
[1755536722195,2.92,182.25,182.21,8.4951]
[1755536722396,2.92,182.25,182.21,3.01]
[1755536722903,3.11,182.24,182.21,3.01]
[1755536723105,3.11,182.24,182.19,9.36422379]
[1755536723306,3.11,182.24,182.19,12.37422379]
[1755536723602,3.11,182.25,182.16,6.88862379]
[1755536724205,3.11,182.25,182.16,12.37502379]
[1755536725400,3.11,182.25,182.16,3.01]
[1755536726204,3.11,182.25,182.16,8.4964]
[1755536726403,3.11,182.25,182.16,3.01]
[1755536726600,3.11,182.25,182.17,5.4862]
[1755536726801,50.0,182.27,182.19,3.87862379]
[1755536727003,135.78,182.26,182.19,6.88862379]
[1755536727199,0.04027684,182.23,182.2,5.4854]
[1755536727403,0.04027684,182.23,182.2,8.4954]
[1755536727606,3.15027684,182.23,182.2,8.4954]
[1755536728107,3.15027684,182.23,182.2,3.01]
[1755536728306,3.11,182.22,182.19,9.36422379]
[1755536729006,3.11,182.22,182.19,12.37422379]
[1755536729606,3.11,182.22,182.19,3.01]
[1755536729806,3.11,182.21,182.16,6.88862379]
[1755536730007,3.11,182.22,182.16,6.88862379]
[1755536730204,3.11,182.22,182.16,12.37512379]
[1755536730409,3.11,182.22,182.16,6.88862379]
[1755536731412,135.78,182.21,182.14,3.87862379]
[1755536731603,138.89,182.21,182.14,3.87862379]
[1755536731803,3.11,182.2,182.11,3.87862379]
[1755536732211,0.0349551,182.19,182.11,3.87862379]
[1755536732407,0.0349551,182.19,182.12,5.4877]
[1755536732710,3.11,182.18,182.1,3.01]
[1755536732905,3.11,182.18,182.06,0.95554518]
[1755536732906,3.11,182.18,182.07,3.87862379]
[1755536733111,3.11,182.18,182.09,5.4885]
[1755536733516,3.87862379,182.17,182.06,3.01]
[1755536733708,0.0371709,182.15,182.06,3.01]
[1755536734006,3.11,182.13,182.02,6.88862379]
[1755536734402,3.11,182.13,182.02,3.01]
[1755536734600,3.11,182.12,182.08,8.499]
[1755536734801,0.03909244,182.09,182.08,3.01]
[1755536735012,0.03909244,182.09,182.08,8.4991]
[1755536735213,3.11,182.15,182.08,3.04877412]
[1755536735712,135.78,182.17,182.12,3.01]
[1755536735903,4.90453704,182.16,182.1,3.01]
[1755536736107,3.11,182.18,182.1,3.01]
[1755536736308,4.9080023,182.17,182.13,8.4975]
[1755536736505,4.9080023,182.16,182.13,8.4975]
[1755536736905,4.90457781,182.15,182.12,5.4877]
[1755536737101,4.90869169,182.14,182.11,0.03675811]
[1755536737306,4.90869169,182.13,182.11,3.04675811]
[1755536737503,3.11,182.17,182.11,3.04675811]
[1755536737708,11.97602846,182.16,182.11,3.04675811]
[1755536738015,8.01660757,182.15,182.11,3.04675811]
[1755536738205,4.90660757,182.14,182.11,3.04675811]
[1755536738411,4.90660757,182.13,182.11,3.04675811]
[1755536738613,4.90660757,182.12,182.11,3.04675811]
[1755536739016,4.90660757,182.12,182.11,8.53485811]
[1755536739213,368.64,182.2,182.11,9.14271235]
[1755536739413,3.97144845,182.19,182.17,5.4863]
[1755536739618,371.75,182.2,182.17,5.4863]
[1755536739815,3.11,182.24,182.15,1.65]
[1755536740118,3.97163529,182.23,182.17,0.0393763]
[1755536740308,7.08236853,182.22,182.17,0.0393763]
[1755536740507,3.11,182.22,182.17,1.6893763]
[1755536740715,3.11,182.22,182.18,5.4857]
[1755536740917,3.97023488,182.21,182.17,0.0393763]
[1755536741117,135.8,182.25,182.17,0.0393763]
[1755536741118,3.11,182.18,182.17,0.0393763]
[1755536741321,7.08609045,182.18,182.17,0.0393763]
[1755536741516,3.97609045,182.18,182.17,0.0393763]
[1755536742519,3.11,182.22,182.18,1.65]
[1755536742708,3.96941401,182.21,182.2,5.4854]
[1755536743716,3.96941401,182.21,182.2,7.1354]
[1755536743917,135.8,182.25,182.22,5.4847]
[1755536744113,3.97310046,182.24,182.22,5.4847]
[1755536744313,3.97310046,182.23,182.22,7.1347]
[1755536746213,135.8,182.25,182.23,5.4844]
[1755536746519,3.98126029,182.24,182.23,5.4844]
[1755536748119,138.87,182.29,182.25,5.4836]
[1755536748314,3.98038464,182.28,182.25,5.4836]
[1755536748517,3.98038464,182.27,182.25,5.4836]
[1755536748715,3.98038464,182.26,182.25,5.4836]
[1755536749025,3.98038464,182.26,182.25,5.52331367]
[1755536749212,3.98038464,182.26,182.25,0.03971367]
[1755536749520,3.98038464,182.26,182.25,1.68971367]
[1755536749816,138.87,182.29,182.25,1.68971367]
[1755536750021,3.98189234,182.28,182.26,5.4836]
[1755536750221,3.98189234,182.27,182.25,0.03971367]
[1755536750417,135.76,182.29,182.25,0.03971367]
[1755536750612,7.09219077,182.28,182.25,5.52351367]
[1755536750919,135.76,182.29,182.17,7.74595424]
[1755536750920,3.11,182.26,182.17,7.74595424]
[1755536751117,3.98219077,182.25,182.19,5.4856]
[1755536751420,3.11,182.26,182.17,1.65]
[1755536751421,139.72219077,182.24,182.17,1.65]
[1755536751614,3.98219077,182.23,182.17,1.65]
[1755536751820,135.74,182.24,182.18,5.4859]
[1755536752122,2.91,182.21,182.17,1.65]
[1755536752515,2.91,182.21,182.17,5.4861]
[1755536752818,2.91,182.21,182.17,7.1861]
[1755536756116,2.91,182.21,182.17,5.4861]
[1755536756321,2.91,182.22,182.16,5.4865]
[1755536756922,2.91,182.23,182.17,5.4863]
[1755536757234,2.94737933,182.21,182.17,5.4863]
[1755536757716,2.91,182.2,182.17,5.4863]
[1755536759321,2.91,182.2,182.18,5.486]
[1755536760125,0.03737933,182.21,182.18,5.486]
[1755536760428,0.03737933,182.21,182.19,5.4857]
[1755536760723,2.91,182.28,182.2,1.7]
[1755536762028,2.91,182.28,182.22,0.03690444]
[1755536762223,2.91,182.27,182.24,5.484]
[1755536762423,2.91,182.26,182.24,5.484]
[1755536763434,2.91,182.28,182.25,5.4839]
[1755536763632,2.91,182.28,182.22,1.73690444]
[1755536764025,2.91,182.28,182.26,5.4835]
[1755536764736,135.74,182.29,182.27,5.4833]